Cogmind - Beta 12 @@@ ROGUE MODE // 2023.07.07 @ 18:46:16 Player: Senator Honkstrong Result: Self-destructed Performance ------------- Evolutions (1) 500 Regions Visited (4) 800 Robots Destroyed (63) 315 Value Destroyed (1440) 1440 Prototype IDs (9) 180 Alien Tech Used (0) 0 Bonus (-194) -194 TOTAL SCORE: 3041 Bonus ------- Friendly Fire -194 Cogmind --------- Core Integrity 231/400 Matter 300/300 Energy 280/280 System Corruption 1% Temperature Cool (0) Movement Treading (160) Location -9/Mines Parts ------- > --- POWER (1) -------- Heavy Ion Engine > --- PROPULSION (3) --- Light Treads Light Treads Improved Treads > --- UTILITY (2) ------ Disposable Heat Sink Large Storage Unit > --- WEAPON (3) ------- Beam Rifle (fused) Beam Rifle Improved Medium Laser > --- INVENTORY (15) --- Heavy Ion Engine Light Treads Light Treads Carbon-fiber Leg Disposable Heat Sink Disposable Heat Sink Disposable Heat Sink Disposable Heat Sink Structural Scanner Hacking Suite Bomb Drone Bay (16/16) Particle Cannon Rocket Launcher Datajack Peak State ------------ > --- POWER ------------ Heavy Ion Engine > --- PROPULSION ------- Light Treads Light Treads Improved Treads > --- UTILITY ---------- Bomb Drone Bay > --- WEAPON ----------- Beam Rifle Improved Medium Laser Improved Medium Laser > --- INVENTORY -------- Light Treads Disposable Heat Sink Disposable Heat Sink [Rating: 29] Favorites ----------- Power Ion Engine Engine Ion Engine Propulsion Light Treads Treads Light Treads Hover Unit Improved Hover Unit Utility Large Storage Unit Device Disposable Heat Sink Storage Large Storage Unit Weapon Improved Medium Laser Energy Gun Improved Medium Laser Ballistic Gun Assault Rifle Launcher Rocket Launcher Special Weapon Plasma Cutter Build | -11 -10 -10 -9 -9 ------- Run | Jun Mat Min Mat Min Slots Evolved 2 | . . . 2 . Power . | . . . . . Propulsion 1 | . . . 1 . Utility . | . . . . . Weapon 1 | . . . 1 . Parts Attached 47 | 6 9 . 30 2 Power 2 | 1 . . 1 . Engine 2 | 1 . . 1 . Core . | . . . . . Reactor . | . . . . . Propulsion 16 | 2 4 . 9 1 Treads 13 | 2 2 . 8 1 Leg . | . . . . . Wheel . | . . . . . Hover 3 | . 2 . 1 . Flight . | . . . . . Utility 8 | 1 3 . 4 . Device 5 | . 2 . 3 . Storage 3 | 1 1 . 1 . Processor . | . . . . . Hackware . | . . . . . Protection . | . . . . . Artifact . | . . . . . Weapon 21 | 2 2 . 16 1 Energy Gun 15 | 1 2 . 11 1 Energy Cannon . | . . . . . Ballistic Gun 2 | 1 . . 1 . Ballistic Cannon . | . . . . . Launcher 1 | . . . 1 . Special Weapon 3 | . . . 3 . Impact Weapon . | . . . . . Slashing Weapon . | . . . . . Piercing Weapon . | . . . . . Special Melee Weapon . | . . . . . Unidentified Prototypes 4 | . 1 . 3 . Parts Lost 7 | . . . 5 2 Power . | . . . . . Propulsion 3 | . . . 2 1 Utility . | . . . . . Weapon 4 | . . . 3 1 Highest Loss Streak 2 | . . . 2 2 To Critical Strikes . | . . . . . Average Slot Usage (%) 97 | . 99 100 95 99 Engine 12 | . 14 14 11 11 Treads 29 | . 27 28 31 32 Device 10 | . 13 14 7 11 Storage 12 | . 14 14 11 11 Energy Gun 27 | . 27 28 26 33 Special Weapon 2 | . . . 4 . Naked Turns . | . . . . . Heaviest Build 38 | 14 32 32 38 38 Greatest Support 66 | 40 40 40 66 66 Greatest Overweight (x) 12 | . 2 . 12 . Average Overweight (x) . | . . . . . Largest Inventory Capacity 15 | 8 15 15 15 15 Average Capacity 13 | 7 10 15 14 15 Most Carried 15 | 5 14 15 15 15 Average Carried 12 | 2 9 13 14 14 Final Capacity 15 | 8 15 15 15 15 Final Carried 15 | 4 14 14 15 15 Class Distribution -------------------- 56% | Mutant 43% | Gunner Dominant Class ---------------- Mutant | -10/Materials Mutant | -10/Mines Gunner | -9/Materials Gunner | -9/Mines Resources | -11 -10 -10 -9 -9 ----------- Run | Jun Mat Min Mat Min Matter Collected 725 | 255 90 . 360 20 Remotely . | . . . . . Salvage Created 2257 | . 448 30 1583 196 Parts 141 | . 29 6 101 5 Haulers Intercepted 3 | . . . 3 . Recyclers Shooed 1 | . . . 1 . Parts Field Recycled . | . . . . . Retrieved Matter . | . . . . . Parts Self-Destructed . | . . . . . Prevented . | . . . . . Kills | -11 -10 -10 -9 -9 ------- Run | Jun Mat Min Mat Min Combat Hostiles Destroyed 42 | . 12 3 25 2 Guns 31 | . 11 1 18 1 Cannons 3 | . . . 3 . AOE 3 | . . 2 1 . Classes Destroyed 11 | . 4 . 6 1 Worker 2 | . . . 2 . Builder 2 | . . . 2 . Hauler 3 | . . . 3 . Recycler 5 | . . . 5 . Operator 1 | . 1 . . . Watcher 6 | . 2 . 4 . Swarmer 15 | . 3 3 9 . Grunt 15 | . 9 . 6 . Brawler 1 | . . . 1 . Sentry 11 | . . . 9 2 Zionite 1 | . . . . 1 Thug 1 | . . . . 1 Best Kill Streak 4 | . 3 3 4 2 Combat Bots Only 4 | . 3 3 4 2 Max Kills in Single Turn 2 | . 1 2 2 1 Gunslinging . | . . . . . Exploded 2 | . . 2 1 . Melee . | . . . . . Uniques/NPCs Destroyed . | . . . . . Combat | -11 -10 -10 -9 -9 -------- Run | Jun Mat Min Mat Min Damage Taken 1519 | . 256 17 1041 205 Core 194 | . 25 . 129 40 Absorbed by Shields . | . . . . . Regen/Repaired (Parts) 84 | . . . 84 . Core Remaining (%) 95 | 100 . 90 . . Volleys Fired 118 | . 35 3 71 9 Largest 3 | . 2 2 3 3 Hottest 168 | . 112 112 168 168 Shots Fired 298 | . 70 6 196 26 Gun 267 | . 70 6 165 26 Cannon . | . . . . . Launcher 6 | . . . 6 . Special 25 | . . . 25 . Kinetic . | . . . . . Thermal 292 | . 70 6 190 26 Explosive 6 | . . . 6 . Electromagnetic . | . . . . . Robot Hit Streak 18 | . 12 1 18 17 Robot Miss Streak 8 | . 8 4 4 1 Penetration Max . | . . . . . Secondary Targets 1 | . 1 . . . Max Gunslinging Chain 1 | . 1 . . . Shots Hit Robots 175 | . 40 1 116 18 Core Hits 76 | . 16 3 51 6 Critical Kills . | . . . . . Critical Parts Destroyed . | . . . . . Critical Strikes 18 | . 6 . 11 1 Burn 18 | . 6 . 11 1 Melee Attacks . | . . . . . Impact . | . . . . . Slashing . | . . . . . Piercing . | . . . . . Sneak Attacks . | . . . . . Combat Hostiles . | . . . . . Follow-up Attacks . | . . . . . Damage Inflicted 3328 | 9 698 151 2198 272 Guns 2720 | . 698 34 1716 272 Cannons . | . . . . . Explosions 400 | . . 117 283 . Melee . | . . . . . Ramming 15 | 9 . . 6 . Kinetic . | . . . . . Thermal 3030 | . 698 151 1909 272 Explosive 283 | . . . 283 . Electromagnetic . | . . . . . Impact . | . . . . . Slashing . | . . . . . Piercing . | . . . . . Highest Corruption 1 | . . . 1 1 Average Corruption 1 | . . . 1 1 Corruption Purged . | . . . . . Corruption Blocked . | . . . . . Effects 12 | . . . 11 1 Message Errors 2 | . . . 2 . Matter Fused 3 | . . . 3 . Heat Flow Errors 1 | . . . 1 . Energy Discharges 1 | . . . 1 . Parts Fused 1 | . . . 1 . Data Loss (minor) 3 | . . . 2 1 Weapon Failures 1 | . . . 1 . Overload Shots . | . . . . . Overflow Damage 16 | . . . 16 . Projectiles . | . . . . . Explosions 16 | . . . 16 . Melee . | . . . . . Knockbacks . | . . . . . Impact . | . . . . . Kinetic . | . . . . . Secondary . | . . . . . Self-Inflicted Damage 64 | . . 17 47 . Shots 2 | . . 1 1 . Rammed 1 | 1 . . . . Targets Rammed 2 | 1 . . 1 . Kicked . | . . . . . Crushed 1 | . . . 1 . Highest Temperature 375 | . 195 94 375 197 Average Temperature 90 | . 72 44 98 111 Received Heat Transfer 507 | . 150 . 294 63 Effects 1 | . . . 1 . Shutdowns 1 | . . . 1 . Siege Activations . | . . . . . Robots Corrupted . | . . . . . Combat Hostiles . | . . . . . Parts Fried . | . . . . . Impact Corruptions . | . . . . . Robots Melted 5 | . 1 . 3 1 Combat Hostiles 5 | . 1 . 3 1 Parts Melted 27 | . 5 1 18 3 Heat Transferred 8216 | . 1961 224 5291 740 Parts Sabotaged . | . . . . . Parts Stolen . | . . . . . Parts Stripped . | . . . . . Power Chain Reactions . | . . . . . Missiles Intercepted . | . . . . . Alert | -11 -10 -10 -9 -9 ------- Run | Jun Mat Min Mat Min Peak Influence 349 | . 120 102 349 92 Initial 57 | . . 9 . 57 Average 108 | . 51 46 170 88 Maximum Alert Level 1 | . . . 1 . Low Security (%) 86 | 100 100 100 72 100 Level 1 13 | . . . 27 . Level 2 . | . . . . . Level 3 . | . . . . . Level 4 . | . . . . . Level 5 . | . . . . . High Security . | . . . . . Max Security . | . . . . . Squads Dispatched 3 | . 2 . 1 . Investigation 2 | . 1 . 1 . Extermination . | . . . . . Reinforcement 1 | . 1 . . . Assault . | . . . . . Garrison . | . . . . . Intercept . | . . . . . Searches Triggered . | . . . . . Construction Impeded . | . . . . . Haulers Reinforced . | . . . . . Active Scanning Responses . | . . . . . Cargo Convoy Interrupts . | . . . . . Stealth | -11 -10 -10 -9 -9 --------- Run | Jun Mat Min Mat Min Distress Signals 4 | . 1 . 3 . Communications Jammed . | . . . . . Distress Signals . | . . . . . Times Spotted 66 | . 26 1 37 2 Peak Tracking Total 4 | . 4 1 4 2 Tactical Retreats 4 | . 2 . 2 . Traps | -11 -10 -10 -9 -9 ------- Run | Jun Mat Min Mat Min Traps Triggered 2 | . . . 2 . Indirectly . | . . . . . Trap Hack Attempts . | . . . . . Triggered . | . . . . . Disarmed . | . . . . . Reprogrammed . | . . . . . Reused . | . . . . . Traps Extracted . | . . . . . Installed . | . . . . . Triggered . | . . . . . Machines | -11 -10 -10 -9 -9 ---------- Run | Jun Mat Min Mat Min Machines Disabled 5 | . . 1 4 . Max in Single Turn 1 | . . 1 1 . Machines Repaired . | . . . . . Machines Sabotaged . | . . . . . Overloaded Fab Kills . | . . . . . Hacking | -11 -10 -10 -9 -9 --------- Run | Jun Mat Min Mat Min Machines Accessed 22 | . 7 1 14 . Terminals 13 | . 5 . 8 . Fabricators . | . . . . . Repair Stations 2 | . . . 2 . Recycling Units 4 | . 2 . 2 . Scanalyzers 2 | . . . 2 . Garrison Access . | . . . . . Total Hacks 61 | . 19 1 41 . Successful 30 | . 7 1 22 . Failed 30 | . 12 . 18 . Catastrophic 7 | . 2 . 5 . Database Lockouts 1 | . . . 1 . Manual 23 | . 5 . 18 . Terminals 40 | . 16 . 24 . Fabricators . | . . . . . Repair Stations 5 | . . . 5 . Recycling Units 6 | . 3 . 3 . Scanalyzers 9 | . . . 9 . Garrison Access . | . . . . . Terminal Hacks 15 | . 5 1 9 . Prototype ID Bank 5 | . . . 5 . Open Door 1 | . . 1 . . Branch Access Points 1 | . . . 1 . Alert Level 3 | . 1 . 2 . Unreport Threat 2 | . 1 . 1 . Locate Traps 3 | . 3 . . . Fabricator Hacks . | . . . . . Repair Station Hacks 3 | . . . 3 . Scan Component 2 | . . . 2 . Repair 1 | . . . 1 . Recycling Unit Hacks 4 | . 2 . 2 . Retrieve Components 4 | . 2 . 2 . Scanalyzer 8 | . . . 8 . Insert Component 4 | . . . 4 . Analyze 4 | . . . 4 . Garrison Access Hacks . | . . . . . Unauthorized Hacks . | . . . . . Terminals . | . . . . . Fabricators . | . . . . . Repair Stations . | . . . . . Recycling Units . | . . . . . Scanalyzers . | . . . . . Garrison Access . | . . . . . Data Cores Recovered . | . . . . . Used . | . . . . . Hacking Detections 20 | . 6 . 14 . Full Trace Events 3 | . 1 . 2 . Feedback Events . | . . . . . Feedback Blocked . | . . . . . Robot Schematics Acquired . | . . . . . Robots Built . | . . . . . Authchips . | . . . . . Time . | . . . . . Total Robot Build Rating . | . . . . . Part Schematics Acquired 3 | . . . 3 . Parts Built . | . . . . . Authchips . | . . . . . Time . | . . . . . Total Part Build Rating . | . . . . . Parts Repaired 1 | . . . 1 . Time 51 | . . . 51 . Parts Recycled . | . . . . . Recycled Matter . | . . . . . Retrieved Matter . | . . . . . Retrieved Components 27 | . 10 . 17 . Parts Scanalyzed 3 | . . . 3 . Part Schematics Acquired 3 | . . . 3 . Parts Damaged . | . . . . . Bothacking | -11 -10 -10 -9 -9 ------------ Run | Jun Mat Min Mat Min Used RIF Installer . | . . . . . Robots Hacked . | . . . . . Non-combat . | . . . . . Combat . | . . . . . Robot Hacks Applied . | . . . . . Relay Couplers Released . | . . . . . Fabnet Peak Effective % . | . . . . . Robots Rewired . | . . . . . Allies Hacked . | . . . . . Hacks Repelled . | . . . . . Allies | -11 -10 -10 -9 -9 -------- Run | Jun Mat Min Mat Min Total Allies 2 | . . . . 2 Largest Group 2 | . . . . 2 Highest-Rated Group 45 | . . . . 45 Highest-Rated Ally 31 | . . . . 31 Total Orders . | . . . . . Ally Attacks . | . . . . . Total Damage . | . . . . . Kills . | . . . . . Allies Corrupted . | . . . . . Allies Melted . | . . . . . Intel | -11 -10 -10 -9 -9 ------- Run | Jun Mat Min Mat Min Robot Analysis Total . | . . . . . Derelict Logs Recovered 2 | . . 1 . 1 Drone Launches . | . . . . . Drone Recoveries . | . . . . . Exploration | -11 -10 -10 -9 -9 ------------- Run | Jun Mat Min Mat Min Turns Passed 5331 | 80 1609 872 2569 201 Spaces Moved 2697 | 43 804 531 1216 103 Core 6 | 5 . . 1 . Treads 2690 | 38 803 531 1215 103 Legs . | . . . . . Wheels . | . . . . . Hover 1 | . 1 . . . Flight . | . . . . . Fastest Speed 50 | 50 160 160 160 160 Average Speed 160 | 147 160 160 160 160 Slowest Speed 650 | 160 200 160 650 160 Overloaded Moves . | . . . . . Propulsion Burnouts . | . . . . . Robots Hopped . | . . . . . Cave-ins Triggered . | . . . . . Exploration Rate (%) 60 | 4 93 98 91 17 Regions Visited 4 Branch Regions 2 Pre-discovered Areas 1 | . . 1 . . Known Exits Taken 1 | . . . 1 . Unknown Exits Taken 3 | 1 1 1 . . Scrap Searched 1 | . . 1 . . Spaces Dug . | . . . . . Terrain Destroyed 61 | . . 10 51 . Melee . | . . . . . Projectile . | . . . . . AOE 61 | . . 10 51 . Terrain Rammed . | . . . . . Walls Destroyed . | . . . . . Machines Disabled . | . . . . . Actions | -11 -10 -10 -9 -9 --------- Run | Jun Mat Min Mat Min Total 3450 | 59 1060 549 1663 119 Wait 461 | . 174 11 273 3 Move 2693 | 42 803 530 1215 103 Hop . | . . . . . Pick Up 85 | 10 25 2 46 2 Fast Attach . | . . . . . Attach 25 | 6 2 . 15 2 Detach 1 | . . . 1 . Swap 22 | . 7 . 15 . Drop 43 | . 14 3 26 . Fire 118 | . 35 3 71 9 Melee . | . . . . . Ram . | . . . . . Kick . | . . . . . Crush 2 | 1 . . 1 . Escape Stasis . | . . . . . Rewire . | . . . . . Trap . | . . . . . Miscellaneous . | . . . . . Route ------- -11/Junkyard -10/Materials (discovered 5 exits: *Mat x3 / *Min x2) -10/Mines (discovered 2 exits: *Mat x2) -9/Materials (discovered 4 exits: [*Mat x3] / *Min) -9/Mines History --------- Turn | Location | Event 15 | -11/Junkyard | Discovered new exit (range 15) 81 | -11/Junkyard | Entered Materials 315 | -10/Materials | Build established: Mutant 429 | -10/Materials | Discovered new exit (range 16) 1127 | -10/Materials | Discovered new exit (range 9) 1182 | -10/Materials | Discovered new exit (range 15) 1289 | -10/Materials | Discovered new exit (range 9) 1444 | -10/Materials | Discovered new exit (range 5) 1690 | -10/Materials | Entered Mines 1717 | -10/Mines | Discovered new exit (range 15) 1756 | -10/Mines | Discovered new exit (range 8) 1933 | -10/Mines | Learned location of Recycling (-8) 1974 | -10/Mines | Found the Drone Emporium 1987 | -10/Mines | Found Prototype Device 2191 | -10/Mines | Received a Rocket Launcher from a helpful Derelict 2562 | -10/Mines | Entered Materials 2562 | -9/Materials | Evolved 2 slots: Propulsion x1, Weapon x1 2870 | -9/Materials | Build established: Gunner 3297 | -9/Materials | Discovered new exit (range 8) 3573 | -9/Materials | Identified Bomb Drone Bay 3788 | -9/Materials | Identified exit to Mines 3856 | -9/Materials | Repaired Imp. Medium Laser 3934 | -9/Materials | Discovered new exit (range 3) 4865 | -9/Materials | Central database locked down 4989 | -9/Materials | Discovered new exit (range 6) 5131 | -9/Materials | Entered Mines 5332 | -9/Mines | Self-destructed Last Messages --------------- GOAL=ESCAPE Something is scanning the area. 05151_ Imp. Treads destroyed. 05153_ Y-45 Defender heat damages core (-7). 05153_ Heat Sink melted. 05154_ Imp. Medium Laser destroyed. 05162_ Y-45 Defender suffers critical hit (Burn). 05162_ Hvy. Assault Rifle melted. 05162_ Heat Sink melted. 05162_ Y-45 Defender destroyed. 05167_ Acquired 10 matter. 05171_ Acquired Lgt. Treads. 05245_ A pair of derelicts emerge from the shadows: "We're, um, lost. You wouldn't happen to know the way out of here, would you?" 05285_ Acquired derelict log, extracted data. Data stored: Factory entrances (x1). 05293_ TB-CB9(g) destroyed. 05299_ Acquired Carbon-fiber Leg. 05318_ OD-GL8(z) destroyed. 05321_ System corrupted: Component data lost. Map ----- +----------------------------------------------------+ | ?????## ###??????????????????????? | | ?????## ##????????????????????????? | | ????## ##?????????????????????????? | | ????# #??????????????????????????? | | ????# #??????????????????????????? | | ????# ##?????????????????????????? | | ????## ##????????????????????????? | | ????## ########?????????????????? | | ???## #?????????????????? | | ??## ##### #?????????????????? | | ??# #???# #?????????????????? | | ??# ##?### ### ##????????????? | | ??# #??# #????????????? | | ??# #?# ##### #???????????? | | ??# ## #???????????????????? | | ??## #???????????????????? | | ???##### #???????????????????? | | ???????## ## #???????????????????? | | ????????##### #???????????????????? | | ????????????# #???????????????????? | | ????????????# #???????????????????? | | ????????????# ##??????????????????? | | ????????????# ##?????????????????? | | ???????????## #?????????????????? | | ??????????## #?????????????????? | | ??????#####@ ##?????????????????? | | ?????## ##?#####????????????? | | ?????# ###??# ?????????????? | | ?????# ## ##????#!#??????????????? | | ?????##?### #?????#%#??????????????? | | ??????????#=####### #??????????????? | | ??????????#%r #??????????????? | | ??????????# #########??????????????? | | ??????????# #??????????????????????? | | ??????????# #??????????????????????? | | ??????????# #??????????????????????? | | ??????????# #??????????????????????? | | ??????????# #??????????????????????? | | ??????????# #??????????????????????? | | ??????????# #??????????????????????? | | ??????????# #??????????????????????? | | ??????????# #??????????????????????? | | ??????????? ???????????????????????? | | ??????????? ???????????????????????? | | ???????????#???????????????????????? | | ???????????????????????????????????? | | ???????????????????????????????????? | | ???????????????????????????????????? | | ???????????????????????????????????? | | ???????????????????????????????????? | +----------------------------------------------------+ Best States ------------- Heat Dissipation 35 Coolant Potential 50 Energy Generation 14 Energy Capacity 280 Matter Stores 300 Matter Capacity 300 Sight Range 16 Terrain Scan Density 10 Evasion (%) 40 Recoil Reduction 3 Item Schematics ----------------- Disposable Heat Sink | -9/Materials | Scanalyzed Imp. Medium Laser | -9/Materials | Scanalyzed Imp. Treads | -9/Materials | Scanalyzed Robot Schematics ------------------ None Fabricated ------------ Nothing Alien Tech Used ----------------- None Achievements -------------- None Challenges ------------ None Game ------ Seed InsulatedMicroArmor Manual? 0 Play Time 00:48:32 Cumulative 26.2 hours Start 2023.07.07 @ 17:11:17 End 2023.07.07 @ 18:46:16 Sessions 1 Manual Loads 0 Difficulty Rogue Special Mode None Game No. 14 Rogue 14 Adventurer 0 Explorer 0 Win Type - Total 0 Types 0/0/0/0/0/0/0/0/0 Lore% 24 Gallery% 26 Achievement% 26 Wizard Run 0 Options --------- ASCII 0 Keyboard 0 Movement Mouse Keybinds 0 Fullscreen 1 Font 18/SmallcapsGlow Map View 76x50 Tactical HUD 1 Map Filters NONE Filters NONE Steam X RUN: 713157e6-5cef-4372-aa30-83f555d2a6b0